bitfinex/quotes_SOLUSD_20250624
["timestamp","ask_amount","ask_price","bid_price","bid_amount"]
[1750764173268,9.5,143.34,143.33,6.97690643]
[1750764173435,45.90348055,143.34,143.33,6.97690643]
[1750764174649,40.16,143.34,143.33,6.97690643]
[1750764179046,45.90348055,143.34,143.33,6.97690643]
[1750764180275,40.16,143.34,143.33,6.97690643]
[1750764180483,45.90348055,143.34,143.33,6.97690643]
[1750764181869,45.90348055,143.34,143.33,25.62655529]
[1750764182171,40.16,143.34,143.33,25.62655529]
[1750764183238,45.90348055,143.34,143.33,25.62655529]
[1750764183979,45.90348055,143.34,143.33,18.64964886]
[1750764184641,51.04583268,143.34,143.33,18.64964886]
[1750764185470,9.5,143.32,143.31,33.2673109]
[1750764185665,45.76348055,143.32,143.31,33.2673109]
[1750764186463,45.76348055,143.32,143.31,18.64964886]
[1750764186864,45.76348055,143.32,143.31,25.62752898]
[1750764187066,40.02,143.32,143.31,25.62752898]
[1750764187243,45.76348055,143.32,143.31,25.62752898]
[1750764189080,45.76348055,143.32,143.31,18.64964886]
[1750764189259,45.76348055,143.32,143.28,26.02964886]
[1750764189260,9.5,143.29,143.28,26.02964886]
[1750764189575,45.68348055,143.29,143.28,26.02964886]
[1750764190060,45.68348055,143.29,143.28,33.00876692]
[1750764190258,39.94,143.29,143.28,7.38]
[1750764190577,45.68348055,143.29,143.28,33.00899001]
[1750764191078,39.94,143.29,143.28,33.00899001]
[1750764192288,45.68348055,143.29,143.28,26.02964886]
[1750764192666,45.68348055,143.29,143.28,33.00899001]
[1750764193564,50.8323306,143.29,143.28,25.62899001]
[1750764194160,45.08885005,143.29,143.28,25.62899001]
[1750764194380,39.94,143.29,143.28,25.62899001]
[1750764197683,45.68348055,143.29,143.28,25.62899001]
[1750764199311,45.68348055,143.29,143.28,18.64964886]
[1750764199467,39.94,143.29,143.28,18.64964886]
[1750764199785,45.68348055,143.29,143.28,18.64964886]
[1750764200588,45.68348055,143.29,143.28,25.62899001]
[1750764201390,45.68348055,143.29,143.28,18.64964886]
[1750764201777,45.68348055,143.29,143.28,25.62899001]
[1750764202276,45.68348055,143.29,143.28,18.64964886]
[1750764202696,39.94,143.29,143.28,18.64964886]
[1750764203296,45.68348055,143.29,143.28,25.62899001]
[1750764203593,39.94,143.29,143.28,25.62899001]
[1750764203767,45.68348055,143.29,143.28,25.62899001]
[1750764203967,9.5,143.27,143.26,14.38016922]
[1750764204196,45.56348055,143.27,143.26,26.04964886]
[1750764205477,45.56348055,143.27,143.26,7.4]
[1750764206569,50.70782809,143.27,143.26,7.4]
[1750764206789,45.56348055,143.27,143.26,14.38031551]
[1750764206992,45.56348055,143.27,143.26,33.02996437]
[1750764208302,45.56348055,143.27,143.26,26.04964886]
[1750764209221,45.56348055,143.27,143.26,33.02996437]
[1750764209222,39.82,143.27,143.26,33.02996437]
[1750764209428,45.56348055,143.27,143.26,33.02996437]
[1750764209743,39.82,143.27,143.26,33.02996437]
[1750764213213,39.82,143.27,143.26,38.77344492]
[1750764214044,39.82,143.27,143.26,33.02996437]
[1750764215938,39.82,143.27,143.26,38.77344492]
[1750764216143,39.82,143.27,143.26,33.02996437]
[1750764216819,39.82,143.27,143.26,38.77344492]
[1750764217420,39.82,143.27,143.26,33.02996437]
[1750764217812,45.56348055,143.27,143.26,26.04964886]
[1750764218014,45.56348055,143.27,143.26,7.4]
[1750764218302,44.96201557,143.27,143.26,7.4]
[1750764218522,50.70549612,143.27,143.26,7.4]
[1750764218922,45.56348055,143.27,143.26,7.4]
[1750764219120,50.70612147,143.27,143.26,7.4]
[1750764219312,50.70612147,143.27,143.24,18.64964886]
[1750764219313,9.5,143.25,143.24,18.64964886]
[1750764219511,45.38348055,143.25,143.24,25.630939]
[1750764219740,39.64,143.25,143.24,25.630939]
[1750764223744,9.5,143.25,143.24,31.37441955]
[1750764224040,8.1,143.25,143.24,25.630939]
[1750764224337,8.1,143.25,143.24,31.37441955]
[1750764224935,30.08,143.26,143.25,18.64964886]
[1750764224936,38.18,143.26,143.25,18.64964886]
[1750764226742,8.1,143.27,143.26,18.64964886]
[1750764226927,38.16,143.27,143.26,24.39312941]
[1750764228134,38.12,143.27,143.26,24.39312941]
[1750764228338,8.1,143.27,143.26,24.39312941]
[1750764228518,38.1,143.27,143.26,24.39312941]
[1750764229240,30.0,143.27,143.26,31.37344492]
[1750764229445,38.1,143.27,143.26,31.37344492]
[1750764229739,8.1,143.27,143.26,31.37344492]
[1750764230128,8.1,143.28,143.26,31.37344492]
[1750764230348,30.0,143.28,143.27,24.39312941]
[1750764230515,8.1,143.29,143.28,18.64964886]
[1750764230716,8.1,143.29,143.28,24.39312941]
[1750764231234,8.1,143.29,143.28,31.37247056]
[1750764232741,8.1,143.29,143.28,25.62899001]
[1750764233044,8.1,143.29,143.28,31.37247056]
[1750764233650,8.1,143.29,143.28,48.82082343]
[1750764234447,38.08,143.31,143.28,48.82082343]
[1750764234622,8.1,143.29,143.28,43.07734288]
[1750764234826,8.1,143.29,143.28,48.82082343]
[1750764235440,8.1,143.29,143.28,43.07734288]
[1750764235643,8.1,143.29,143.28,48.82082343]
[1750764241648,8.1,143.3,143.28,48.82082343]
[1750764241943,29.98,143.31,143.28,48.82082343]
[1750764241944,8.1,143.29,143.28,48.82082343]
[1750764243555,8.1,143.29,143.28,43.07734288]
[1750764243744,8.1,143.29,143.28,48.82082343]
[1750764244347,8.1,143.29,143.28,25.62899001]
[1750764248845,8.1,143.29,143.28,31.37247056]
[1750764249046,38.08,143.3,143.28,31.37247056]
[1750764249253,8.1,143.29,143.28,31.37247056]
[1750764250388,29.98,143.3,143.28,31.37247056]
[1750764250389,8.1,143.31,143.3,44.64964886]
[1750764250557,8.1,143.32,143.31,18.64964886]
[1750764250878,8.1,143.32,143.31,24.39312941]
[1750764252155,8.1,143.32,143.31,31.37100953]
[1750764252358,8.1,143.33,143.31,31.37100953]
[1750764252561,8.1,143.32,143.31,25.62752898]
[1750764252862,8.1,143.32,143.31,31.37100953]
[1750764253064,8.1,143.33,143.31,31.37100953]
[1750764253260,8.1,143.33,143.32,24.39312941]
[1750764254267,8.1,143.33,143.32,31.37052265]
[1750764254473,29.98,143.34,143.33,18.64964886]
[1750764254474,38.08,143.34,143.33,18.64964886]
[1750764254974,38.08,143.34,143.32,12.72087379]
[1750764255142,8.1,143.33,143.32,12.72087379]
[1750764256072,8.1,143.33,143.32,6.97739324]
[1750764256882,8.1,143.33,143.32,12.72087379]
[1750764258168,5.6,143.33,143.32,12.72087379]
[1750764259664,5.6,143.33,143.32,6.97739324]
[1750764260080,5.6,143.33,143.32,12.72087379]
[1750764261783,5.6,143.33,143.32,6.97739324]
[1750764263562,5.6,143.33,143.32,12.72087379]
[1750764263755,5.6,143.33,143.32,31.37052265]
[1750764265780,35.56,143.34,143.33,18.64964886]
[1750764265986,29.96,143.34,143.33,24.39312941]
[1750764266181,35.56,143.34,143.33,24.39312941]
[1750764266386,35.56,143.34,143.33,5.74348055]
[1750764267987,35.56,143.34,143.33,12.72038698]
[1750764268172,5.6,143.36,143.34,18.64964886]
[1750764268488,35.56,143.37,143.35,5.74348055]
[1750764268786,35.56,143.37,143.36,5.74348055]
[1750764269089,5.6,143.37,143.35,5.74348055]
[1750764269388,35.56,143.37,143.35,5.74348055]
[1750764269565,35.54,143.37,143.36,5.74348055]
[1750764269765,5.6,143.36,143.35,12.71941358]
[1750764269974,35.54,143.37,143.35,12.71941358]
[1750764270874,5.6,143.36,143.35,12.71941358]
[1750764271492,35.54,143.37,143.35,12.71941358]
[1750764271675,5.6,143.37,143.36,31.36857583]
[1750764271875,5.6,143.38,143.36,31.36857583]
[1750764272087,35.54,143.39,143.38,18.64964886]
[1750764273191,41.28348055,143.39,143.38,18.64964886]
[1750764273696,35.54,143.39,143.38,18.64964886]
[1750764273984,35.54,143.39,143.38,25.62412228]
[1750764276886,5.6,143.39,143.38,25.62412228]
[1750764277472,35.54,143.39,143.38,25.62412228]
[1750764279392,5.6,143.39,143.38,25.62412228]
[1750764281682,35.52,143.4,143.38,31.36760283]
[1750764281876,5.6,143.4,143.39,24.39312941]
[1750764282073,35.52,143.41,143.4,18.64964886]
[1750764282302,35.52,143.41,143.4,24.39312941]
[1750764283202,5.6,143.43,143.39,44.64964886]
[1750764283371,5.6,143.42,143.41,24.39312941]
[1750764285398,5.6,143.43,143.41,24.39312941]
[1750764285604,5.6,143.42,143.41,31.36614384]
[1750764285802,5.6,143.42,143.41,25.62266329]
[1750764285972,5.6,143.42,143.41,31.36614384]
[1750764286177,5.6,143.42,143.41,25.62266329]
[1750764288400,35.52,143.43,143.41,25.62266329]
[1750764288581,5.6,143.42,143.41,25.62266329]
[1750764289395,35.52,143.43,143.42,18.64964886]
[1750764290715,35.52,143.43,143.42,6.97252823]
[1750764299899,35.52,143.43,143.42,25.62217709]
[1750764301622,41.26348055,143.43,143.42,18.64964886]
[1750764302126,5.6,143.4,143.39,25.62353096]
[1750764302328,5.6,143.35,143.33,24.41917252]
[1750764302490,5.6,143.35,143.34,6.96]
[1750764303007,5.6,143.35,143.34,25.60964886]
[1750764303407,5.6,143.36,143.35,18.64964886]
[1750764303598,5.6,143.36,143.35,25.62558189]
[1750764306126,35.48,143.37,143.35,25.62558189]
[1750764306420,5.6,143.36,143.35,25.62558189]
[1750764308318,35.48,143.37,143.35,25.62558189]
[1750764309038,5.6,143.4,143.37,18.64964886]
[1750764309215,5.6,143.4,143.39,18.64964886]
[1750764309216,35.48,143.4,143.39,18.64964886]
[1750764309537,5.6,143.4,143.39,24.39312941]
[1750764310016,5.6,143.4,143.39,31.36711643]
[1750764311541,5.6,143.36,143.35,25.60964886]
[1750764311699,35.48,143.36,143.35,25.60964886]
[1750764311906,35.48,143.36,143.35,32.58558189]
[1750764312213,35.48,143.36,143.35,38.32906244]
[1750764312214,29.88,143.36,143.35,38.32906244]
[1750764312603,29.88,143.36,143.35,32.58558189]
[1750764312804,29.88,143.36,143.35,38.32906244]
[1750764313006,35.48,143.36,143.35,32.58558189]
[1750764314734,29.88,143.36,143.35,38.32906244]
[1750764315430,29.88,143.36,143.35,32.58558189]
[1750764316730,35.48,143.36,143.35,32.58558189]
[1750764317031,5.6,143.36,143.35,32.58558189]
[1750764319017,5.6,143.36,143.35,38.32906244]
[1750764319730,5.6,143.36,143.35,32.58558189]
[1750764319940,5.6,143.36,143.35,38.32906244]
[1750764320142,35.48,143.37,143.35,38.32906244]
[1750764322018,5.6,143.37,143.35,38.32906244]
[1750764322725,35.46,143.37,143.35,38.32906244]
[1750764325645,29.86,143.37,143.35,38.32906244]
[1750764325848,35.46,143.37,143.36,31.36857583]
[1750764327545,29.86,143.37,143.36,31.36857583]
[1750764327745,5.6,143.39,143.38,25.62412228]
[1750764327953,5.6,143.4,143.39,18.64964886]
[1750764328153,35.44,143.4,143.39,24.39312941]
[1750764328524,5.6,143.4,143.39,24.39312941]
[1750764328944,5.6,143.42,143.39,24.39312941]
[1750764329139,35.44,143.41,143.4,24.39312941]
[1750764329341,5.6,143.41,143.4,24.39312941]
[1750764329548,35.44,143.41,143.4,24.39312941]
[1750764330052,35.44,143.41,143.4,31.3666301]
[1750764330632,35.44,143.41,143.4,25.62314955]
[1750764330950,11.6257,143.44,143.41,18.64964886]
[1750764331153,29.84,143.43,143.42,25.56964886]
[1750764331538,35.44,143.43,143.42,25.56964886]
[1750764332254,5.6,143.38,143.37,24.41130813]
[1750764332549,41.18348055,143.38,143.37,6.97495989]
[1750764332756,35.44,143.38,143.37,25.62460875]
[1750764336065,5.6,143.39,143.38,18.64964886]
[1750764336231,5.6,143.39,143.38,24.39312941]
[1750764336430,5.6,143.39,143.38,31.36760283]
[1750764336646,35.42,143.4,143.38,31.36760283]
[1750764336857,29.82,143.4,143.39,24.39312941]
[1750764337053,35.42,143.4,143.39,24.39312941]
[1750764337260,35.42,143.4,143.39,18.64964886]
[1750764337944,6.4727,143.42,143.4,18.64964886]
[1750764337945,5.6,143.42,143.4,18.64964886]
[1750764338260,5.6,143.41,143.4,18.64964886]
[1750764338585,5.6,143.41,143.4,6.97350069]
[1750764338756,29.82,143.42,143.4,6.97350069]
[1750764338931,29.82,143.42,143.41,18.64964886]
[1750764339134,35.42,143.42,143.41,18.64964886]
[1750764339454,35.42,143.42,143.41,24.39312941]
[1750764340338,5.6,143.44,143.41,48.79867992]
[1750764340535,35.42,143.42,143.41,43.05519937]
[1750764340734,5.6,143.43,143.41,55.71867992]
[1750764341042,35.42,143.43,143.42,24.39312941]
[1750764342161,35.42,143.43,143.42,31.36565764]
[1750764343162,5.6,143.43,143.42,31.36565764]
[1750764343353,35.42,143.43,143.42,31.36565764]
[1750764343553,5.6,143.43,143.42,31.36565764]
[1750764343875,5.15295777,143.48,143.42,31.36565764]
[1750764343876,5.6,143.46,143.43,18.64964886]
[1750764344163,5.6,143.45,143.44,24.39312941]
[1750764344459,35.42,143.46,143.45,18.64964886]
[1750764344644,35.42,143.46,143.44,5.74348055]
[1750764345260,35.4,143.46,143.43,44.64964886]
[1750764345563,35.4,143.46,143.44,5.74348055]
[1750764346156,35.4,143.46,143.45,6.97107005]
[1750764347347,5.6,143.48,143.45,12.7145506]
[1750764347537,35.4,143.47,143.46,24.39312941]
[1750764347946,29.8,143.47,143.46,24.39312941]
[1750764348262,35.4,143.47,143.46,24.39312941]
[1750764349236,5.6,143.48,143.47,18.64964886]
[1750764349461,5.6,143.48,143.47,31.36322768]
[1750764351839,5.6,143.48,143.47,48.78847337]
[1750764352670,5.6,143.48,143.47,43.04499282]
[1750764352850,5.6,143.48,143.47,48.78847337]
[1750764353369,5.6,143.48,143.47,43.04499282]
[1750764353946,5.6,143.48,143.47,48.78847337]
[1750764359568,5.6,143.49,143.47,48.78847337]
[1750764359866,5.6,143.49,143.48,32.49926134]
[1750764361104,5.6,143.49,143.48,38.24274189]
[1750764361263,29.78,143.5,143.49,18.64964886]
[1750764361468,29.78,143.5,143.49,24.39312941]
[1750764361690,35.36,143.52,143.49,24.39312941]
[1750764361860,5.6,143.52,143.51,24.39312941]
[1750764362060,35.36,143.52,143.51,24.39312941]
[1750764362387,6.96434695,143.59,143.51,24.39312941]
[1750764362388,5.6,143.54,143.53,44.64964886]
[1750764362575,5.6,143.54,143.53,50.39312941]
[1750764362970,5.6,143.55,143.54,18.64964886]
[1750764363159,5.6,143.55,143.54,24.39312941]
[1750764363961,35.36,143.56,143.54,31.35982858]
[1750764364183,5.6,143.55,143.54,25.61634803]
[1750764364368,5.6,143.55,143.54,38.23982858]
[1750764366170,35.34,143.56,143.54,38.23982858]
[1750764366371,35.34,143.56,143.55,31.35934327]
[1750764366572,5.6,143.56,143.55,31.35934327]
[1750764366884,5.6,143.58,143.56,18.64964886]
[1750764367077,5.6,143.58,143.57,24.39312941]
[1750764368082,5.6,143.58,143.57,31.35837284]
[1750764369186,35.34,143.58,143.57,31.35837284]
[1750764369874,35.34,143.58,143.57,25.61489229]
[1750764370892,5.6,143.58,143.57,25.61489229]
[1750764371111,35.34,143.58,143.57,25.61489229]
[1750764383888,29.74,143.58,143.57,25.61489229]
[1750764384089,29.74,143.58,143.57,31.35837284]
[1750764384284,35.34,143.58,143.57,31.35837284]
[1750764385005,29.74,143.58,143.57,31.35837284]
[1750764385212,5.6,143.59,143.58,18.64964886]
[1750764385513,35.3,143.59,143.58,18.64964886]
[1750764386408,35.3,143.59,143.58,25.61440718]
[1750764387988,26.0,143.64,143.58,74.76978353]
[1750764387989,5.6,143.64,143.58,74.76978353]
[1750764388318,5.6,143.64,143.63,24.39312941]
[1750764388518,5.6,143.64,143.63,25.48964886]
[1750764388820,35.28,143.64,143.63,25.48964886]
[1750764389737,35.28,143.64,143.63,32.45198263]
[1750764393104,5.6,143.65,143.64,18.64964886]
[1750764393297,35.26,143.66,143.64,24.39312941]
[1750764393513,5.6,143.66,143.64,24.39312941]
[1750764393698,35.26,143.66,143.65,31.35449383]
[1750764394016,35.26,143.66,143.65,25.61101328]
[1750764395915,5.6,143.66,143.65,31.35449383]
[1750764396128,35.26,143.66,143.65,31.35449383]
[1750764396309,5.6,143.66,143.65,31.35449383]
[1750764398837,29.64,143.68,143.66,18.64964886]
[1750764399005,12.34578055,143.71,143.67,5.74348055]
[1750764399212,29.64,143.7,143.67,5.74348055]
[1750764399723,6.6023,143.71,143.68,5.74348055]
[1750764399897,29.64,143.69,143.68,5.74348055]
[1750764400294,1.5437,143.72,143.7,18.64964886]
[1750764400497,29.64,143.71,143.7,18.64964886]
[1750764401312,35.38348055,143.71,143.7,18.64964886]
[1750764402205,35.38348055,143.71,143.68,18.64964886]
[1750764402424,5.74348055,143.69,143.67,18.64964886]
[1750764402740,35.38348055,143.68,143.67,18.64964886]
[1750764403148,35.38348055,143.68,143.66,18.64964886]
[1750764403636,5.74348055,143.67,143.66,18.64964886]
[1750764405946,29.64,143.68,143.66,18.64964886]
[1750764406120,5.74348055,143.67,143.66,18.64964886]
[1750764406839,35.38348055,143.68,143.66,6.9608251]
[1750764408441,35.38348055,143.68,143.65,6.96125743]
[1750764408621,29.64,143.68,143.65,6.96125743]
[1750764408822,35.38348055,143.68,143.65,6.96125743]
[1750764410052,5.74348055,143.66,143.64,18.64964886]
[1750764410254,29.6,143.65,143.64,18.64964886]
[1750764410418,35.34348055,143.65,143.64,18.64964886]
[1750764411941,35.34348055,143.65,143.64,25.61149792]
[1750764412328,29.6,143.65,143.64,25.61149792]
[1750764412839,5.74348055,143.66,143.64,25.61149792]
[1750764413030,29.6,143.65,143.64,25.61149792]
[1750764416620,6.4837,143.73,143.68,18.64964886]
[1750764416830,1.6149,143.74,143.67,26.0]
[1750764416831,5.74348055,143.75,143.71,18.64964886]
[1750764417036,29.6,143.74,143.71,18.64964886]
[1750764417227,8.1666,143.77,143.71,18.64964886]
[1750764417551,5.74348055,143.75,143.71,18.64964886]
[1750764418048,5.74348055,143.75,143.71,24.39312941]
[1750764418235,5.74348055,143.75,143.71,18.64964886]
[1750764418637,5.74348055,143.75,143.72,6.95797383]
[1750764418846,29.6,143.76,143.72,6.95797383]
[1750764419040,5.74348055,143.75,143.72,6.95797383]
[1750764419230,29.6,143.76,143.72,6.95797383]
[1750764419425,5.74348055,143.75,143.72,6.95797383]
[1750764419632,5.74348055,143.75,143.7,6.78]
[1750764419633,5.74348055,143.73,143.7,6.78]
[1750764419845,29.58,143.72,143.7,6.78]
[1750764420023,5.74348055,143.71,143.7,6.78]
[1750764420958,5.14180622,143.74,143.7,19.48234517]
[1750764421129,146.6,143.78,143.72,5.74348055]
[1750764421455,29.58,143.76,143.73,18.64964886]
[1750764421652,35.32348055,143.76,143.73,18.64964886]
[1750764421819,5.74348055,143.75,143.71,18.64964886]
[1750764422330,5.74348055,143.75,143.71,24.39312941]
[1750764422857,35.32348055,143.76,143.73,18.64964886]
[1750764423344,29.58,143.76,143.72,24.35290842]
[1750764423552,5.74348055,143.79,143.75,24.39312941]
[1750764423744,29.58,143.78,143.75,24.39312941]
[1750764423948,5.74348055,143.8,143.75,24.39312941]
[1750764424270,26.0,143.82,143.77,24.39312941]
[1750764424271,29.62,143.79,143.77,24.39312941]
[1750764424426,29.62,143.79,143.78,25.42964886]
[1750764424920,35.36348055,143.79,143.78,25.42964886]
[1750764425120,35.36348055,143.79,143.71,17.39528407]
[1750764425340,5.74348055,143.76,143.74,18.64964886]
[1750764425559,29.64,143.75,143.74,18.64964886]
[1750764425734,35.38348055,143.75,143.74,18.64964886]
[1750764427749,29.64,143.75,143.74,18.64964886]
[1750764427956,35.38348055,143.75,143.73,6.78]
[1750764428140,5.74348055,143.74,143.69,18.64964886]
[1750764428330,5.74348055,143.7,143.69,18.64964886]
[1750764428527,29.64,143.7,143.69,18.64964886]
[1750764428722,35.38348055,143.7,143.69,18.64964886]
[1750764429152,35.38348055,143.7,143.69,25.6090754]
[1750764429970,35.38348055,143.7,143.69,18.64964886]
[1750764431055,29.64,143.7,143.69,25.6090754]
[1750764432050,29.64,143.7,143.69,31.35255595]
[1750764432259,29.64,143.7,143.69,25.6090754]
[1750764432491,29.64,143.7,143.69,31.35255595]
[1750764433264,29.64,143.7,143.69,25.6090754]
[1750764435194,29.64,143.7,143.69,34.17000439]
[1750764437795,29.64,143.7,143.69,25.6090754]
[1750764437978,29.64,143.7,143.69,34.17000439]
[1750764439393,29.58,143.73,143.69,51.56857074]
[1750764439573,29.58,143.73,143.71,18.64964886]
[1750764439779,29.58,143.73,143.72,25.60762269]
[1750764457025,34.76463923,143.73,143.72,25.60762269]
[1750764457701,32.76463923,143.73,143.72,25.60762269]
[1750764459717,32.77104014,143.73,143.72,25.60762269]
[1750764462598,32.77110115,143.73,143.72,25.60762269]
[1750764463121,32.77121137,143.73,143.72,25.60762269]
[1750764463801,27.58,143.73,143.72,25.60762269]
[1750764464626,29.56,143.75,143.73,18.64964886]
[1750764464917,29.56,143.77,143.75,18.64964886]
[1750764465103,29.56,143.77,143.76,25.42964886]
[1750764465619,34.74880363,143.77,143.76,32.3856867]
[1750764465994,34.74889337,143.77,143.76,32.3856867]
[1750764467397,34.74889337,143.77,143.76,25.42964886]
[1750764467608,34.74889337,143.77,143.76,32.3856867]
[1750764469223,29.56,143.77,143.76,32.3856867]
[1750764470422,29.56,143.77,143.76,38.09141824]
[1750764470719,29.56,143.79,143.77,18.64964886]
[1750764470899,5.1830386,143.78,143.77,18.64964886]
[1750764471925,5.1830386,143.78,143.77,25.60520286]
[1750764473323,29.56,143.79,143.77,31.3109344]
[1750764473618,29.56,143.79,143.77,25.60520286]
[1750764473917,29.54,143.8,143.77,48.69981942]
[1750764474121,5.17959373,143.79,143.77,48.69981942]
[1750764474422,29.54,143.81,143.79,18.64964886]
[1750764474621,5.18002182,143.8,143.79,18.64964886]
[1750764474796,29.54,143.81,143.79,18.64964886]
[1750764475214,29.54,143.81,143.78,18.64964886]
[1750764475610,35.24573154,143.81,143.78,18.64964886]
[1750764476010,5.70573154,143.8,143.78,25.60430347]
[1750764476210,29.54,143.79,143.78,25.60430347]
[1750764477702,29.54,143.79,143.78,31.31003501]
[1750764478405,29.54,143.79,143.78,25.60430347]
[1750764478609,29.54,143.79,143.78,31.31003501]
[1750764479018,11.85213154,143.82,143.78,31.31003501]
[1750764479019,29.54,143.81,143.78,31.31003501]
[1750764479218,11.85213154,143.82,143.78,31.31003501]
[1750764479423,34.71369128,143.81,143.78,31.31003501]
[1750764479624,29.54,143.81,143.78,48.69771062]
[1750764481638,11.85213154,143.82,143.78,48.69771062]
[1750764481813,29.54,143.81,143.78,48.69771062]
[1750764482830,29.54,143.81,143.78,42.99197908]
[1750764483039,29.54,143.81,143.78,48.69771062]
[1750764483426,35.24573154,143.81,143.78,25.60430347]
[1750764484538,5.70573154,143.8,143.78,25.60430347]
[1750764485151,10.87246735,143.79,143.77,18.64964886]
[1750764485309,35.24573154,143.78,143.77,18.64964886]
[1750764486436,29.54,143.78,143.77,18.64964886]
[1750764486623,40.4125176,143.78,143.76,6.78]
[1750764486820,5.70573154,143.77,143.76,25.42964886]
[1750764487028,35.24573154,143.78,143.76,25.42964886]
[1750764487233,29.54,143.78,143.77,18.64964886]
[1750764487415,34.70684493,143.78,143.77,18.64964886]
[1750764488717,34.70684493,143.78,143.77,25.60520286]
[1750764489009,29.54,143.78,143.77,25.60520286]
[1750764493423,29.54,143.78,143.77,31.3109344]
[1750764493647,5.16897701,143.82,143.78,18.64964886]
[1750764493832,29.52,143.8,143.78,24.3553804]
[1750764494151,29.52,143.81,143.78,24.3553804]
[1750764494823,29.52,143.81,143.8,18.64964886]
[1750764495023,34.6914455,143.81,143.8,18.64964886]
[1750764495322,29.52,143.82,143.8,24.3553804]
[1750764495938,12.02763154,143.84,143.8,24.3553804]
[1750764496139,34.69118248,143.83,143.8,24.3553804]
[1750764496335,29.52,143.83,143.8,24.3553804]
[1750764496648,29.52,143.83,143.82,18.64964886]
[1750764497129,5.70573154,143.85,143.82,18.64964886]
[1750764497310,29.52,143.84,143.82,18.64964886]
[1750764498532,35.22573154,143.84,143.82,18.64964886]
[1750764499053,35.22573154,143.84,143.83,25.60230129]
[1750764499254,29.52,143.84,143.83,25.60230129]
[1750764499460,5.17195297,143.87,143.84,18.64964886]
[1750764499461,29.52,143.85,143.84,18.64964886]
[1750764499621,40.39673821,143.85,143.83,6.76]
[1750764499819,10.87673821,143.84,143.83,6.76]
[1750764500151,5.70573154,143.84,143.83,6.76]
[1750764500341,10.87648402,143.84,143.83,6.76]
[1750764500722,10.87817732,143.84,143.83,6.76]
[1750764501947,6.0749,143.83,143.78,18.64964886]
[1750764502163,5.70573154,143.79,143.78,18.64964886]
[1750764502323,35.20573154,143.79,143.78,18.64964886]
[1750764503844,40.37991494,143.79,143.78,18.64964886]
[1750764505464,40.37991494,143.79,143.78,25.6047191]
[1750764508552,40.38681413,143.79,143.78,25.6047191]
[1750764510556,40.38681413,143.79,143.78,18.64964886]
[1750764512353,40.38831588,143.79,143.78,18.64964886]
[1750764512755,40.38831588,143.79,143.78,25.6047191]
[1750764513665,5.18258434,143.79,143.78,25.6047191]
[1750764513827,40.38831588,143.79,143.78,18.64964886]
[1750764514448,34.68258434,143.79,143.78,18.64964886]
[1750764514632,40.38831588,143.79,143.78,18.64964886]
[1750764514841,40.38831588,143.79,143.78,25.6047191]
[1750764515242,40.3906601,143.79,143.78,25.6047191]
[1750764516833,34.68492856,143.79,143.78,25.6047191]
[1750764517442,5.18492856,143.79,143.78,25.6047191]
[1750764517633,29.48,143.81,143.78,25.6047191]
[1750764517829,5.18712648,143.8,143.78,42.99239471]
[1750764518048,29.48,143.82,143.78,42.99239471]
[1750764518229,5.18668161,143.81,143.78,42.99239471]
[1750764518432,35.18573154,143.82,143.78,42.99239471]
[1750764518633,5.18613967,143.81,143.78,42.99239471]
[1750764518853,35.18573154,143.82,143.78,42.99239471]
[1750764519070,5.18622055,143.81,143.78,42.99239471]
[1750764519355,35.18573154,143.82,143.78,42.99239471]
[1750764519551,5.18622055,143.81,143.78,42.99239471]
[1750764519759,35.18573154,143.82,143.78,42.99239471]
[1750764519950,5.1863352,143.81,143.78,42.99239471]
[1750764520146,35.18573154,143.82,143.78,42.99239471]
[1750764520361,5.18582913,143.81,143.78,42.99239471]
[1750764520554,5.70573154,143.81,143.78,42.99239471]
[1750764520860,5.18559285,143.8,143.78,42.99239471]
[1750764521065,5.70573154,143.81,143.78,42.99239471]
[1750764521271,5.18560304,143.8,143.78,42.99239471]